[Event "Early-Titled-Tuesday-Blitz-December-26-2023"]
[Site "Chess.com"]
[Date "2023.12.26"]
[Round "10"]
[White "Cheer_Down"]
[Black "Lady_Nika"]
[Result "0-1"]
[WhiteElo "2486"]
[BlackElo "2595"]
[TimeControl "180+1"]
[EndTime "9:54:56 PST"]
[Termination "Lady_Nika won by resignation"]

1. d4 {[%clk 0:03:00.9]} 1... d5 {[%clk 0:02:57.8]} 2. Bf4 {[%clk 0:02:59.7]}
2... e6 {[%clk 0:02:57.9]} 3. e3 {[%clk 0:02:58.2]} 3... Bd6 {[%clk 0:02:58.3]}
4. Bg3 {[%clk 0:02:54]} 4... f5 {[%clk 0:02:58.3]} 5. Nf3 {[%clk 0:02:53.1]}
5... Nf6 {[%clk 0:02:58.7]} 6. c4 {[%clk 0:02:51.9]} 6... c6 {[%clk 0:02:58.8]}
7. Nc3 {[%clk 0:02:51.8]} 7... O-O {[%clk 0:02:58.9]} 8. Bd3 {[%clk 0:02:44.9]}
8... Ne4 {[%clk 0:02:58.5]} 9. Bxd6 {[%clk 0:02:40.1]} 9... Qxd6 {[%clk
0:02:58.5]} 10. Ne5 {[%clk 0:02:40.1]} 10... Nd7 {[%clk 0:02:58]} 11. f4 {[%clk
0:02:40.2]} 11... Nxe5 {[%clk 0:02:58.3]} 12. fxe5 {[%clk 0:02:38.7]} 12... Qb4
{[%clk 0:02:58.5]} 13. Qb3 {[%clk 0:02:38.1]} 13... Qe7 {[%clk 0:02:56.9]} 14.
O-O {[%clk 0:02:35.3]} 14... Nd2 {[%clk 0:02:56.4]} 15. Qc2 {[%clk 0:02:34.2]}
15... Nxf1 {[%clk 0:02:56.7]} 16. Rxf1 {[%clk 0:02:35.1]} 16... Bd7 {[%clk
0:02:57.1]} 17. a3 {[%clk 0:02:10.9]} 17... Qg5 {[%clk 0:02:55.8]} 18. Qd2
{[%clk 0:02:08]} 18... Rf7 {[%clk 0:02:49.7]} 19. Ne2 {[%clk 0:02:06]} 19...
Raf8 {[%clk 0:02:49.1]} 20. b4 {[%clk 0:02:03.4]} 20... Qh6 {[%clk 0:02:48.9]}
21. g3 {[%clk 0:02:01.4]} 21... g5 {[%clk 0:02:47.2]} 22. c5 {[%clk 0:01:55.8]}
22... Rg7 {[%clk 0:02:47.3]} 23. a4 {[%clk 0:01:52.6]} 23... a6 {[%clk
0:02:47.5]} 24. Qc1 {[%clk 0:01:45.2]} 24... Be8 {[%clk 0:02:47]} 25. Kh1 {[%clk
0:01:27.4]} 25... Bh5 {[%clk 0:02:42.3]} 26. Nc3 {[%clk 0:01:26.6]} 26... f4
{[%clk 0:02:41.3]} 27. gxf4 {[%clk 0:01:24.8]} 27... gxf4 {[%clk 0:02:39.5]} 28.
exf4 {[%clk 0:01:25.2]} 28... Bg4 {[%clk 0:02:26]} 29. Qe3 {[%clk 0:01:23]}
29... Bh3 {[%clk 0:02:19.2]} 30. Rf2 {[%clk 0:01:11.3]} 30... Kh8 {[%clk
0:02:18.6]} 31. Ne2 {[%clk 0:01:09.6]} 31... Rfg8 {[%clk 0:02:10.1]} 32. Ng3
{[%clk 0:01:03.3]} 32... Bf5 {[%clk 0:02:03.7]} 33. Rf3 {[%clk 0:00:54.1]} 33...
Bxd3 {[%clk 0:01:56.1]} 34. Qxd3 {[%clk 0:00:53.5]} 34... Qh3 {[%clk 0:01:51.9]}
35. Qe3 {[%clk 0:00:22]} 35... h5 {[%clk 0:01:38.1]} 36. Qf2 {[%clk 0:00:18.7]}
36... h4 {[%clk 0:01:35.8]} 37. Ne2 {[%clk 0:00:16.2]} 37... Qf5 {[%clk
0:01:33.3]} 38. Qxh4+ {[%clk 0:00:13.4]} 38... Rh7 {[%clk 0:01:33.5]} 39. Qf2
{[%clk 0:00:13.2]} 39... Qb1+ {[%clk 0:01:33.1]} 40. Qf1 {[%clk 0:00:12.4]}
40... Qe4 {[%clk 0:01:30.7]} 41. Ng3 {[%clk 0:00:09.6]} 41... Rxg3 {[%clk
0:01:29.2]} 0-1

[Event "Early-Titled-Tuesday-Blitz-December-26-2023"]
[Site "Chess.com"]
[Date "2023.12.26"]
[Round "10"]
[White "TanitoluwaAps116"]
[Black "chessdiamant"]
[Result "1-0"]
[WhiteElo "2729"]
[BlackElo "2588"]
[TimeControl "180+1"]
[EndTime "9:55:03 PST"]
[Termination "TanitoluwaAps116 won by resignation"]

1. Nf3 {[%clk 0:03:00.9]} 1... Nf6 {[%clk 0:02:59.4]} 2. c4 {[%clk 0:03:00.4]}
2... c5 {[%clk 0:02:57.9]} 3. Nc3 {[%clk 0:02:58.8]} 3... g6 {[%clk 0:02:58.3]}
4. g3 {[%clk 0:02:57.3]} 4... Bg7 {[%clk 0:02:58.8]} 5. Bg2 {[%clk 0:02:57.7]}
5... O-O {[%clk 0:02:59.6]} 6. O-O {[%clk 0:02:58.3]} 6... Nc6 {[%clk
0:02:59.7]} 7. d4 {[%clk 0:02:57.5]} 7... cxd4 {[%clk 0:02:59.6]} 8. Nxd4 {[%clk
0:02:57.9]} 8... Rb8 {[%clk 0:02:54.3]} 9. Bf4 {[%clk 0:02:56.7]} 9... d6 {[%clk
0:02:25.9]} 10. Bxc6 {[%clk 0:02:55.7]} 10... e5 {[%clk 0:02:25.4]} 11. Bg2
{[%clk 0:02:32.1]} 11... exf4 {[%clk 0:02:25.2]} 12. gxf4 {[%clk 0:02:32.6]}
12... Re8 {[%clk 0:02:24.8]} 13. e3 {[%clk 0:02:32.2]} 13... a6 {[%clk
0:02:21.5]} 14. Rc1 {[%clk 0:02:30]} 14... Ng4 {[%clk 0:02:14.2]} 15. h3 {[%clk
0:02:21.7]} 15... Nh6 {[%clk 0:02:08.9]} 16. Nf3 {[%clk 0:02:10.5]} 16... Be6
{[%clk 0:02:02.3]} 17. b3 {[%clk 0:02:09.9]} 17... Nf5 {[%clk 0:01:55.1]} 18.
Ng5 {[%clk 0:02:05.9]} 18... h6 {[%clk 0:01:54.9]} 19. Nxe6 {[%clk 0:02:04]}
19... fxe6 {[%clk 0:01:55.8]} 20. Qd3 {[%clk 0:01:55.6]} 20... Kh7 {[%clk
0:01:53.4]} 21. Rfd1 {[%clk 0:01:55.2]} 21... Qh4 {[%clk 0:01:24.1]} 22. Qe2
{[%clk 0:01:44.4]} 22... h5 {[%clk 0:01:15.8]} 23. Ne4 {[%clk 0:01:43.3]} 23...
Rbd8 {[%clk 0:00:51.7]} 24. Ng5+ {[%clk 0:01:42.1]} 24... Kg8 {[%clk 0:00:51.8]}
25. c5 {[%clk 0:01:31.4]} 25... d5 {[%clk 0:00:49.9]} 26. c6 {[%clk 0:01:31.3]}
26... bxc6 {[%clk 0:00:48.1]} 27. Rxc6 {[%clk 0:01:32.2]} 27... Bf6 {[%clk
0:00:41.2]} 28. Rxe6 {[%clk 0:01:23.9]} 28... Rxe6 {[%clk 0:00:37.3]} 29. Nxe6
{[%clk 0:01:24.8]} 29... Re8 {[%clk 0:00:34.3]} 30. Bxd5 {[%clk 0:01:20.8]}
30... Kh8 {[%clk 0:00:34.5]} 31. Qf3 {[%clk 0:01:17.6]} 31... Rc8 {[%clk
0:00:25.8]} 32. Bc4 {[%clk 0:01:14]} 32... Ng7 {[%clk 0:00:23.1]} 33. Nxg7
{[%clk 0:01:13.1]} 33... Bxg7 {[%clk 0:00:24]} 34. Rd6 {[%clk 0:01:08.9]} 34...
g5 {[%clk 0:00:18.5]} 35. Rd5 {[%clk 0:00:59.8]} 35... g4 {[%clk 0:00:18.8]} 36.
hxg4 {[%clk 0:00:58.5]} 36... hxg4 {[%clk 0:00:19.7]} 37. Qg3 {[%clk 0:00:52.3]}
37... Qxg3+ {[%clk 0:00:19.6]} 38. fxg3 {[%clk 0:00:53.2]} 38... Re8 {[%clk
0:00:20.1]} 39. Rh5+ {[%clk 0:00:52.4]} 1-0

[Event "Early-Titled-Tuesday-Blitz-December-26-2023"]
[Site "Chess.com"]
[Date "2023.12.26"]
[Round "10"]
[White "PavelChernomordik"]
[Black "TitarovVasiliYouTube"]
[Result "0-1"]
[WhiteElo "2416"]
[BlackElo "2543"]
[TimeControl "180+1"]
[EndTime "9:55:05 PST"]
[Termination "TitarovVasiliYouTube won by resignation"]

1. e4 {[%clk 0:03:00.9]} 1... c5 {[%clk 0:02:59.5]} 2. Nc3 {[%clk 0:03:00.5]}
2... Nc6 {[%clk 0:02:58.3]} 3. Bb5 {[%clk 0:02:59.7]} 3... e6 {[%clk 0:02:54.3]}
4. Bxc6 {[%clk 0:02:59.5]} 4... bxc6 {[%clk 0:02:54.1]} 5. e5 {[%clk 0:02:59.5]}
5... f6 {[%clk 0:02:52.4]} 6. f4 {[%clk 0:02:58.7]} 6... fxe5 {[%clk 0:02:44.3]}
7. fxe5 {[%clk 0:02:58.4]} 7... Qg5 {[%clk 0:02:36.2]} 8. Nf3 {[%clk 0:02:57.2]}
8... Qxg2 {[%clk 0:02:36.2]} 9. Rg1 {[%clk 0:02:57.1]} 9... Qh3 {[%clk
0:02:36.4]} 10. Qe2 {[%clk 0:02:56.8]} 10... Ne7 {[%clk 0:02:26.8]} 11. Ne4
{[%clk 0:02:48]} 11... Nd5 {[%clk 0:02:24.4]} 12. d3 {[%clk 0:02:46.8]} 12... c4
{[%clk 0:02:05]} 13. dxc4 {[%clk 0:02:40.8]} 13... Ba6 {[%clk 0:02:04.6]} 14.
Rg3 {[%clk 0:02:34.2]} 14... Qh5 {[%clk 0:01:59]} 15. Nd6+ {[%clk 0:02:22.9]}
15... Bxd6 {[%clk 0:01:55.8]} 16. exd6 {[%clk 0:02:22.9]} 16... O-O {[%clk
0:01:49.9]} 17. Qe4 {[%clk 0:02:10.5]} 17... Nf6 {[%clk 0:01:31]} 18. Qe5 {[%clk
0:02:04.7]} 18... Bxc4 {[%clk 0:01:26.8]} 19. Bg5 {[%clk 0:02:01.4]} 19... Nd5
{[%clk 0:01:13.6]} 20. Qe4 {[%clk 0:01:54.4]} 20... Rf5 {[%clk 0:00:57.6]} 21.
O-O-O {[%clk 0:01:38.9]} 21... Raf8 {[%clk 0:00:53.4]} 22. Qxc4 {[%clk
0:01:21.3]} 22... Rxf3 {[%clk 0:00:53.4]} 23. Rdg1 {[%clk 0:01:20.4]} 23... Rxg3
{[%clk 0:00:49.9]} 24. Rxg3 {[%clk 0:01:19.5]} 24... Qxh2 {[%clk 0:00:49.6]} 25.
Rd3 {[%clk 0:00:17]} 25... Qg1+ {[%clk 0:00:47.7]} 26. Rd1 {[%clk 0:00:16.6]}
26... Qxg5+ {[%clk 0:00:47.7]} 27. Kb1 {[%clk 0:00:15.9]} 27... Qf4 {[%clk
0:00:48.3]} 0-1

[Event "Early-Titled-Tuesday-Blitz-December-26-2023"]
[Site "Chess.com"]
[Date "2023.12.26"]
[Round "10"]
[White "malakismayil"]
[Black "bubeliang"]
[Result "0-1"]
[WhiteElo "2535"]
[BlackElo "2765"]
[TimeControl "180+1"]
[EndTime "9:55:06 PST"]
[Termination "bubeliang won on time"]

1. e4 {[%clk 0:03:00.9]} 1... b6 {[%clk 0:03:00.9]} 2. d4 {[%clk 0:03:00.3]}
2... Bb7 {[%clk 0:03:01.3]} 3. Nc3 {[%clk 0:02:58.8]} 3... e6 {[%clk 0:03:01.6]}
4. Be3 {[%clk 0:02:55.7]} 4... Bb4 {[%clk 0:03:02]} 5. f3 {[%clk 0:02:54.5]}
5... Nf6 {[%clk 0:03:01.5]} 6. Bd3 {[%clk 0:02:53]} 6... d5 {[%clk 0:03:01.4]}
7. e5 {[%clk 0:02:50.2]} 7... Bxc3+ {[%clk 0:03:00.4]} 8. bxc3 {[%clk
0:02:49.8]} 8... Nfd7 {[%clk 0:03:01.3]} 9. Ne2 {[%clk 0:02:49.4]} 9... c5
{[%clk 0:03:01.5]} 10. Ng3 {[%clk 0:02:48.6]} 10... Qc7 {[%clk 0:02:59.7]} 11.
O-O {[%clk 0:02:48.2]} 11... Nc6 {[%clk 0:02:58.8]} 12. f4 {[%clk 0:02:48.4]}
12... g6 {[%clk 0:02:53.8]} 13. Rb1 {[%clk 0:02:45.3]} 13... O-O-O {[%clk
0:02:53]} 14. a4 {[%clk 0:02:43.1]} 14... Na5 {[%clk 0:02:49.6]} 15. Qe1 {[%clk
0:02:23]} 15... Nc4 {[%clk 0:02:47.9]} 16. Bxc4 {[%clk 0:02:07.9]} 16... dxc4
{[%clk 0:02:48.8]} 17. a5 {[%clk 0:02:06.9]} 17... Qc6 {[%clk 0:02:43.2]} 18.
Qf2 {[%clk 0:02:05]} 18... bxa5 {[%clk 0:02:37.4]} 19. dxc5 {[%clk 0:01:57.9]}
19... Nb8 {[%clk 0:02:31.2]} 20. Rfd1 {[%clk 0:01:53.8]} 20... Rd5 {[%clk
0:02:30.6]} 21. Ne2 {[%clk 0:01:42.2]} 21... Rxd1+ {[%clk 0:02:16.8]} 22. Rxd1
{[%clk 0:01:41.4]} 22... Qe4 {[%clk 0:02:17.2]} 23. Nd4 {[%clk 0:01:36.2]} 23...
Rd8 {[%clk 0:02:15.2]} 24. Rb1 {[%clk 0:01:34.1]} 24... a6 {[%clk 0:02:07.2]}
25. Ra1 {[%clk 0:01:21.7]} 25... Rxd4 {[%clk 0:01:51.8]} 26. Bxd4 {[%clk
0:01:09.1]} 26... Nc6 {[%clk 0:01:51.5]} 27. h3 {[%clk 0:00:59.5]} 27... h5
{[%clk 0:01:47.6]} 28. Be3 {[%clk 0:00:26.4]} 28... Ne7 {[%clk 0:01:43.1]} 29.
Rxa5 {[%clk 0:00:25.4]} 29... Nf5 {[%clk 0:01:43.1]} 30. c6 {[%clk 0:00:14.6]}
30... Bxc6 {[%clk 0:01:42]} 31. Bc5 {[%clk 0:00:04.2]} 31... Nh4 {[%clk
0:01:23.3]} 32. Rxa6 {[%clk 0:00:03.2]} 32... Bb7 {[%clk 0:01:23.7]} 33. Ra1
{[%clk 0:00:02.4]} 33... Nxg2 {[%clk 0:01:20.9]} 34. Bb6 {[%clk 0:00:02.3]}
34... Ne3 {[%clk 0:01:13]} 35. Qh2 {[%clk 0:00:02.9]} 35... Nxc2 {[%clk
0:01:09.6]} 36. Rc1 {[%clk 0:00:02.5]} 36... Ne1 {[%clk 0:01:10]} 0-1

[Event "Early-Titled-Tuesday-Blitz-December-26-2023"]
[Site "Chess.com"]
[Date "2023.12.26"]
[Round "10"]
[White "frederiksvane"]
[Black "AlexanderL"]
[Result "0-1"]
[WhiteElo "2963"]
[BlackElo "2902"]
[TimeControl "180+1"]
[EndTime "9:55:07 PST"]
[Termination "AlexanderL won by resignation"]

1. e4 {[%clk 0:03:00.9]} 1... e6 {[%clk 0:02:59.3]} 2. d4 {[%clk 0:03:01.2]}
2... d5 {[%clk 0:02:59.5]} 3. e5 {[%clk 0:03:01.9]} 3... c5 {[%clk 0:02:59.5]}
4. c3 {[%clk 0:03:02.5]} 4... Nc6 {[%clk 0:02:59.9]} 5. Nf3 {[%clk 0:03:03.1]}
5... Bd7 {[%clk 0:03:00.4]} 6. Be2 {[%clk 0:02:58.9]} 6... cxd4 {[%clk
0:02:59.5]} 7. cxd4 {[%clk 0:02:58.8]} 7... Nge7 {[%clk 0:02:59.3]} 8. Na3
{[%clk 0:02:58.2]} 8... Nf5 {[%clk 0:02:59]} 9. Nc2 {[%clk 0:02:58.7]} 9... f6
{[%clk 0:02:59.5]} 10. O-O {[%clk 0:02:50.5]} 10... fxe5 {[%clk 0:02:59]} 11.
dxe5 {[%clk 0:02:50.1]} 11... Bc5 {[%clk 0:02:55.8]} 12. a3 {[%clk 0:02:33.6]}
12... O-O {[%clk 0:02:55.2]} 13. b4 {[%clk 0:02:34]} 13... Bb6 {[%clk
0:02:55.7]} 14. Bb2 {[%clk 0:02:30.2]} 14... Rc8 {[%clk 0:02:54.7]} 15. Qd2
{[%clk 0:02:24]} 15... Nce7 {[%clk 0:02:54.6]} 16. Ncd4 {[%clk 0:02:20.9]} 16...
Ng6 {[%clk 0:02:49.7]} 17. Nxf5 {[%clk 0:02:20]} 17... Rxf5 {[%clk 0:02:49.4]}
18. Bd3 {[%clk 0:02:15.3]} 18... Rxf3 {[%clk 0:02:27.9]} 19. gxf3 {[%clk
0:02:10.9]} 19... Qh4 {[%clk 0:02:27.9]} 20. Bxg6 {[%clk 0:01:45.7]} 20... hxg6
{[%clk 0:02:28.8]} 21. Kh1 {[%clk 0:01:46.3]} 21... Qh5 {[%clk 0:02:15.1]} 22.
Qd1 {[%clk 0:01:27.3]} 22... Ba4 {[%clk 0:02:13.9]} 23. Qd3 {[%clk 0:00:50.7]}
23... Bb5 {[%clk 0:02:05.6]} 24. Qxb5 {[%clk 0:00:26.4]} 24... Qxf3+ {[%clk
0:02:05.3]} 25. Kg1 {[%clk 0:00:27.2]} 25... Rc4 {[%clk 0:02:05.2]} 26. Qe8+
{[%clk 0:00:24.3]} 26... Kh7 {[%clk 0:02:04.2]} 27. Qxe6 {[%clk 0:00:25]} 27...
Rf4 {[%clk 0:01:33.1]} 28. h3 {[%clk 0:00:08]} 28... Bxf2+ {[%clk 0:01:29.9]}
29. Kh2 {[%clk 0:00:05.8]} 29... Bg3+ {[%clk 0:00:58.5]} 30. Kg1 {[%clk
0:00:06.3]} 30... Qe3+ {[%clk 0:00:57.3]} 31. Kh1 {[%clk 0:00:07]} 31... Qe2
{[%clk 0:00:52.5]} 32. Rf2 {[%clk 0:00:01.8]} 32... Qxf2 {[%clk 0:00:51.6]} 0-1

[Event "Early-Titled-Tuesday-Blitz-December-26-2023"]
[Site "Chess.com"]
[Date "2023.12.26"]
[Round "10"]
[White "Ezov"]
[Black "The_Straightforward_Rook"]
[Result "0-1"]
[WhiteElo "2156"]
[BlackElo "2481"]
[TimeControl "180+1"]
[EndTime "9:55:10 PST"]
[Termination "The_Straightforward_Rook won by resignation"]

1. d4 {[%clk 0:02:59.1]} 1... d5 {[%clk 0:01:59.4]} 2. Nc3 {[%clk 0:02:57.2]}
2... Nf6 {[%clk 0:01:57.6]} 3. Bf4 {[%clk 0:02:56.1]} 3... c6 {[%clk 0:01:57.1]}
4. Qd2 {[%clk 0:02:55.8]} 4... Bf5 {[%clk 0:01:56.4]} 5. O-O-O {[%clk
0:02:55.5]} 5... h6 {[%clk 0:01:57]} 6. f3 {[%clk 0:02:55.1]} 6... e6 {[%clk
0:01:55.7]} 7. g4 {[%clk 0:02:53.6]} 7... Bh7 {[%clk 0:01:55.4]} 8. h4 {[%clk
0:02:52.5]} 8... Bb4 {[%clk 0:01:51.2]} 9. a3 {[%clk 0:02:50.8]} 9... Bxc3
{[%clk 0:01:47.3]} 10. Qxc3 {[%clk 0:02:51.7]} 10... Nbd7 {[%clk 0:01:38.7]} 11.
g5 {[%clk 0:02:45.5]} 11... Nh5 {[%clk 0:01:38]} 12. Be3 {[%clk 0:02:38.2]}
12... Ng3 {[%clk 0:01:37.3]} 13. Rh3 {[%clk 0:02:34.6]} 13... Nxf1 {[%clk
0:01:37.9]} 14. Rxf1 {[%clk 0:02:34.7]} 14... Bf5 {[%clk 0:01:35.6]} 15. Rg3
{[%clk 0:02:30.1]} 15... h5 {[%clk 0:01:35.4]} 16. Bf4 {[%clk 0:02:21.1]} 16...
Qb6 {[%clk 0:01:29.3]} 17. Qb4 {[%clk 0:01:55.4]} 17... Qxb4 {[%clk 0:01:18.3]}
18. axb4 {[%clk 0:01:56.3]} 18... a5 {[%clk 0:01:18.7]} 19. bxa5 {[%clk
0:01:45.7]} 19... Rxa5 {[%clk 0:01:19.6]} 20. Kd2 {[%clk 0:01:45]} 20... Ra2
{[%clk 0:01:07.6]} 21. Kc3 {[%clk 0:01:35.3]} 21... O-O {[%clk 0:01:03.1]} 22.
Bd6 {[%clk 0:01:34.7]} 22... Rfa8 {[%clk 0:01:02.1]} 23. Ba3 {[%clk 0:01:33.7]}
23... R2xa3+ {[%clk 0:00:55]} 24. bxa3 {[%clk 0:01:33]} 24... Rxa3+ {[%clk
0:00:55.9]} 25. Kd2 {[%clk 0:01:32.4]} 25... Nb6 {[%clk 0:00:55.2]} 26. Rb1
{[%clk 0:01:25.2]} 26... Nc4+ {[%clk 0:00:54]} 27. Ke1 {[%clk 0:01:23.1]} 27...
b5 {[%clk 0:00:53.1]} 28. Kd1 {[%clk 0:00:56.2]} 28... Ne3+ {[%clk 0:00:49.6]}
29. Kd2 {[%clk 0:00:49.9]} 29... Nxc2 {[%clk 0:00:46.7]} 30. Rb2 {[%clk
0:00:31.2]} 30... Nxd4 {[%clk 0:00:45.9]} 31. e3 {[%clk 0:00:27.9]} 31... Nb3+
{[%clk 0:00:41.6]} 32. Ke2 {[%clk 0:00:27]} 32... Nc5 {[%clk 0:00:40.1]} 33. Kf2
{[%clk 0:00:22.1]} 33... Nd3+ {[%clk 0:00:39.8]} 0-1

[Event "Early-Titled-Tuesday-Blitz-December-26-2023"]
[Site "Chess.com"]
[Date "2023.12.26"]
[Round "10"]
[White "Evgeny81"]
[Black "YurasovMat-2012"]
[Result "0-1"]
[WhiteElo "2750"]
[BlackElo "2548"]
[TimeControl "180+1"]
[EndTime "9:55:19 PST"]
[Termination "YurasovMat-2012 won by resignation"]

1. e4 {[%clk 0:02:58]} 1... e5 {[%clk 0:02:59.1]} 2. Nf3 {[%clk 0:02:57.2]} 2...
Nf6 {[%clk 0:02:56.4]} 3. Nxe5 {[%clk 0:02:56.2]} 3... d6 {[%clk 0:02:54.6]} 4.
Nc4 {[%clk 0:02:55.9]} 4... Nxe4 {[%clk 0:02:50.7]} 5. Be2 {[%clk 0:02:55.8]}
5... d5 {[%clk 0:02:50.1]} 6. Ne3 {[%clk 0:02:55.3]} 6... Be7 {[%clk 0:02:44.5]}
7. O-O {[%clk 0:02:54.7]} 7... O-O {[%clk 0:02:44.4]} 8. d3 {[%clk 0:02:52.8]}
8... Nf6 {[%clk 0:02:45]} 9. d4 {[%clk 0:02:53.1]} 9... c5 {[%clk 0:02:43.8]}
10. dxc5 {[%clk 0:02:52.3]} 10... Nc6 {[%clk 0:02:42]} 11. Nd2 {[%clk
0:02:46.5]} 11... Bxc5 {[%clk 0:02:40.1]} 12. Nb3 {[%clk 0:02:46.2]} 12... Bb6
{[%clk 0:02:40.2]} 13. a4 {[%clk 0:02:41]} 13... a6 {[%clk 0:02:36]} 14. Bf3
{[%clk 0:02:40.2]} 14... Be6 {[%clk 0:02:35.2]} 15. Bd2 {[%clk 0:02:32.5]} 15...
Ne5 {[%clk 0:02:29.7]} 16. a5 {[%clk 0:02:22.3]} 16... Ba7 {[%clk 0:02:26.7]}
17. Bb4 {[%clk 0:02:21.2]} 17... Re8 {[%clk 0:02:22.8]} 18. c3 {[%clk
0:02:14.1]} 18... Ne4 {[%clk 0:02:14.5]} 19. Re1 {[%clk 0:01:59]} 19... Qf6
{[%clk 0:01:27.5]} 20. Bxe4 {[%clk 0:01:50.8]} 20... dxe4 {[%clk 0:01:27.1]} 21.
Bc5 {[%clk 0:01:47.9]} 21... Nd3 {[%clk 0:01:25.7]} 22. Bxa7 {[%clk 0:01:45.2]}
22... Qxf2+ {[%clk 0:01:24]} 23. Kh1 {[%clk 0:01:45.3]} 23... Qxe1+ {[%clk
0:01:18.5]} 24. Qxe1 {[%clk 0:01:45.4]} 24... Nxe1 {[%clk 0:01:19.1]} 25. Bb6
{[%clk 0:01:41.1]} 25... Nd3 {[%clk 0:01:18.3]} 26. Nd4 {[%clk 0:01:34.6]} 26...
Nxb2 {[%clk 0:01:17.9]} 27. g4 {[%clk 0:01:28.2]} 27... Rac8 {[%clk 0:01:10.6]}
28. Rc1 {[%clk 0:01:23.9]} 28... Nc4 {[%clk 0:01:08.4]} 29. Nxc4 {[%clk
0:01:20.9]} 29... Bxc4 {[%clk 0:01:07]} 30. Kg2 {[%clk 0:01:18]} 30... e3 {[%clk
0:01:04.5]} 31. Nf5 {[%clk 0:01:16.4]} 31... e2 {[%clk 0:00:53.1]} 32. Re1
{[%clk 0:01:14]} 32... Bd5+ {[%clk 0:00:48.4]} 33. Kf2 {[%clk 0:01:11.8]} 33...
Rxc3 {[%clk 0:00:48.9]} 34. Bd4 {[%clk 0:01:04.3]} 34... Rf3+ {[%clk 0:00:46]}
35. Kg1 {[%clk 0:01:04]} 35... Rf4 {[%clk 0:00:43.9]} 36. h3 {[%clk 0:01:00.5]}
36... Bc4 {[%clk 0:00:38.9]} 37. Bf2 {[%clk 0:00:56.7]} 37... g6 {[%clk
0:00:34.9]} 38. Nd6 {[%clk 0:00:43]} 38... Re6 {[%clk 0:00:34.6]} 39. Nxb7
{[%clk 0:00:42.4]} 39... Ref6 {[%clk 0:00:34.4]} 40. Bh4 {[%clk 0:00:41.1]}
40... Rf1+ {[%clk 0:00:33.8]} 41. Kg2 {[%clk 0:00:41.5]} 41... Bd5+ {[%clk
0:00:32.9]} 42. Kg3 {[%clk 0:00:41.2]} 42... Rxe1 {[%clk 0:00:30.1]} 0-1

[Event "Early-Titled-Tuesday-Blitz-December-26-2023"]
[Site "Chess.com"]
[Date "2023.12.26"]
[Round "10"]
[White "ShahMatKanal"]
[Black "Lion_DL"]
[Result "1/2-1/2"]
[WhiteElo "2512"]
[BlackElo "2387"]
[TimeControl "180+1"]
[EndTime "9:55:26 PST"]
[Termination "Game drawn by stalemate"]

1. e4 {[%clk 0:03:00.9]} 1... c5 {[%clk 0:03:00.1]} 2. d4 {[%clk 0:03:00.3]}
2... cxd4 {[%clk 0:02:59.9]} 3. c3 {[%clk 0:03:00.9]} 3... Nf6 {[%clk
0:03:00.2]} 4. e5 {[%clk 0:03:01]} 4... Nd5 {[%clk 0:02:59.7]} 5. Bc4 {[%clk
0:03:01.5]} 5... Nb6 {[%clk 0:02:57.9]} 6. Bb3 {[%clk 0:03:01.8]} 6... e6 {[%clk
0:02:58.5]} 7. Nf3 {[%clk 0:03:00.7]} 7... d6 {[%clk 0:02:59]} 8. exd6 {[%clk
0:03:00.2]} 8... Bxd6 {[%clk 0:02:58.5]} 9. cxd4 {[%clk 0:02:57.7]} 9... O-O
{[%clk 0:02:58.7]} 10. O-O {[%clk 0:02:58.3]} 10... Nc6 {[%clk 0:02:58.9]} 11.
Nc3 {[%clk 0:02:58.7]} 11... Nb4 {[%clk 0:02:54.7]} 12. Ne4 {[%clk 0:02:37.8]}
12... Be7 {[%clk 0:02:52.6]} 13. Be3 {[%clk 0:02:29.4]} 13... N4d5 {[%clk
0:02:52.1]} 14. Qd2 {[%clk 0:02:26.3]} 14... Bd7 {[%clk 0:02:46.1]} 15. Nc5
{[%clk 0:02:20]} 15... Bc6 {[%clk 0:02:40.9]} 16. Rfe1 {[%clk 0:02:16.2]} 16...
Nxe3 {[%clk 0:02:34.2]} 17. Qxe3 {[%clk 0:02:10.1]} 17... Bxf3 {[%clk
0:02:33.2]} 18. Qxf3 {[%clk 0:02:08.2]} 18... Qxd4 {[%clk 0:02:30.4]} 19. Nxb7
{[%clk 0:01:22.7]} 19... Qxb2 {[%clk 0:02:27.2]} 20. Na5 {[%clk 0:01:19]} 20...
Bb4 {[%clk 0:02:22.7]} 21. Reb1 {[%clk 0:01:01]} 21... Qf6 {[%clk 0:02:20.2]}
22. Qh5 {[%clk 0:00:28.8]} 22... Bc3 {[%clk 0:02:16.3]} 23. Bc2 {[%clk
0:00:23.4]} 23... g6 {[%clk 0:02:16.2]} 24. Qe2 {[%clk 0:00:12.7]} 24... Bxa1
{[%clk 0:02:15.5]} 25. Nb3 {[%clk 0:00:09.1]} 25... Be5 {[%clk 0:02:14.9]} 26.
Nc5 {[%clk 0:00:08.5]} 26... Rac8 {[%clk 0:02:13.2]} 27. Ne4 {[%clk 0:00:08.6]}
27... Qe7 {[%clk 0:02:10.9]} 28. Bb3 {[%clk 0:00:08.9]} 28... Bg7 {[%clk
0:02:10.2]} 29. h4 {[%clk 0:00:09]} 29... Nd5 {[%clk 0:02:09.9]} 30. h5 {[%clk
0:00:08.1]} 30... Nc3 {[%clk 0:02:09.4]} 31. Nxc3 {[%clk 0:00:08.3]} 31... Rxc3
{[%clk 0:02:09.2]} 32. hxg6 {[%clk 0:00:07.2]} 32... hxg6 {[%clk 0:02:10.1]} 33.
g3 {[%clk 0:00:07.4]} 33... Rfc8 {[%clk 0:02:08.4]} 34. Kh2 {[%clk 0:00:07.3]}
34... Rc1 {[%clk 0:02:08.2]} 35. Rxc1 {[%clk 0:00:07.7]} 35... Rxc1 {[%clk
0:02:07.7]} 36. Qe3 {[%clk 0:00:08.2]} 36... Qc5 {[%clk 0:02:06.8]} 37. Qf3
{[%clk 0:00:07.4]} 37... Qh5+ {[%clk 0:02:03.9]} 38. Qxh5 {[%clk 0:00:06.6]}
38... gxh5 {[%clk 0:02:04.8]} 39. Kg2 {[%clk 0:00:07]} 39... Kf8 {[%clk
0:02:04.7]} 40. Kh3 {[%clk 0:00:06.8]} 40... Rf1 {[%clk 0:01:59.7]} 41. Kg2
{[%clk 0:00:06.4]} 41... Re1 {[%clk 0:01:58]} 42. Kh3 {[%clk 0:00:05.6]} 42...
Re2 {[%clk 0:01:58.6]} 43. Kg2 {[%clk 0:00:05.4]} 43... Bd4 {[%clk 0:01:57.9]}
44. Kf3 {[%clk 0:00:05.8]} 44... Rxf2+ {[%clk 0:01:58.3]} 45. Ke4 {[%clk
0:00:06.4]} 45... Bb6 {[%clk 0:01:58.6]} 46. Bc4 {[%clk 0:00:05.8]} 46... Rg2
{[%clk 0:01:57.6]} 47. Kf3 {[%clk 0:00:06]} 47... Rg1 {[%clk 0:01:57.5]} 48. a4
{[%clk 0:00:05.2]} 48... Bc7 {[%clk 0:01:58]} 49. Bb5 {[%clk 0:00:03.3]} 49...
Rxg3+ {[%clk 0:01:58.3]} 50. Ke4 {[%clk 0:00:03.5]} 50... h4 {[%clk 0:01:58.9]}
51. a5 {[%clk 0:00:03.3]} 51... h3 {[%clk 0:01:59.1]} 52. Kd4 {[%clk 0:00:02.2]}
52... h2 {[%clk 0:01:59.1]} 53. Bc6 {[%clk 0:00:02.6]} 53... Rg1 {[%clk
0:01:59.2]} 54. a6 {[%clk 0:00:02.8]} 54... h1=Q {[%clk 0:01:59.7]} 55. Bxh1
{[%clk 0:00:02.8]} 55... Rxh1 {[%clk 0:02:00.6]} 56. Kc5 {[%clk 0:00:03.6]}
56... Bb6+ {[%clk 0:02:00.4]} 57. Kc6 {[%clk 0:00:03.9]} 57... Ra1 {[%clk
0:02:00.6]} 58. Kb7 {[%clk 0:00:04]} 58... Rxa6 {[%clk 0:02:01.3]} 59. Ka8
{[%clk 0:00:03.5]} 59... e5 {[%clk 0:02:02.2]} 60. Kb7 {[%clk 0:00:03.8]} 60...
e4 {[%clk 0:02:02.5]} 61. Kc6 {[%clk 0:00:04.2]} 61... e3 {[%clk 0:02:02.6]} 62.
Kb7 {[%clk 0:00:04.4]} 62... e2 {[%clk 0:02:03.3]} 63. Ka8 {[%clk 0:00:04.3]}
63... e1=Q {[%clk 0:02:04]} 64. Kb7 {[%clk 0:00:04.6]} 64... Qe4+ {[%clk
0:02:04.1]} 65. Kb8 {[%clk 0:00:01.8]} 65... Bc7+ {[%clk 0:02:02.7]} 66. Kc8
{[%clk 0:00:01.8]} 66... Qa8+ {[%clk 0:02:01.7]} 67. Kd7 {[%clk 0:00:01.8]}
67... Rc6 {[%clk 0:02:02.6]} 1/2-1/2